[Event "86th Tata Steel Tienkamp 2024"]
[Site "Wijk aan Zee"]
[Date "2024.01.26"]
[Round "7.3"]
[White "Van Foreest, Machteld"]
[Black "De Winter, Arthur"]
[Result "1/2-1/2"]
[ECO "C47"]
[WhiteElo "2363"]
[BlackElo "2409"]
[Annotator "TA"]
[PlyCount "81"]
[EventDate "2024.01.02"]
[EventType "tourn"]
[EventCountry "NED"]
[SourceTitle "playchess.com"]
[Source "ChessBase"]
[SourceQuality "1"]
[TimeControl "40/6000+30:20/3000+30:900+30"]

{[%evp 11,81,44,43,16,8,0,0,0,0,16,10,-6,-12,-71,-44,-107,-93,-106,-114,-136,-133,-142,-99,-110,-109,-201,-175,-166,-153,-153,-110,-116,-73,-65,-75,-194,-67,-75,-78,-73,-77,-71,-63,-64,0,0,0,0,0,-6,-5,-8,-4,-3,0,-1,-1,-2,0,0,0,0,0,0,0,0,0,0,0,0,0,0]} 1. e4 {[%emt 0:13:11]} e5 {[%emt 0:10:07]} 2. Nf3 {[%emt 0:00:50]} Nc6 {[%emt 0:00:07]} 3. Nc3 {[%emt 0:01:10]} Nf6 {[%emt 0:00:06]} 4. d4 {[%emt 0:00:10]} exd4 {[%emt 0:00:04]} 5. Nxd4 {[%emt 0:00:04]} Nxe4 {[%emt 0:00:02]} 6. Nxe4 {[%emt 0:14:12]} Qe7 $1 {[%emt 0:00:03] [#]} 7. Nb5 $1 {[%emt 0:08:22][%cal Od1e2]} Qxe4+ {[%emt 0:00:06]} 8. Be2 {[%emt 0:02:30]} Bb4+ {[%emt 0:00:06]} 9. c3 {[%emt 0:03:35]} Ba5 {[%emt 0:00:36]} 10. O-O {[%emt 0:04:01]} O-O {[%emt 0:00:08]} 11. Bd3 {[%emt 0:02:38]} Qh4 {[%emt 0:02:06]} 12. g3 {[%emt 0:11:51]} (12. Re1 $11 {remains equal.}) 12... Qf6 {[%emt 0:08:28]} 13. h4 {[%emt 0:05:35]} ({White should try} 13. Be3 $15) 13... Ne5 $17 {[%emt 0:15:17]} 14. Be4 {[%emt 0:03:24]} h6 {[%emt 0:04:09][%cal Od7d5]} 15. Be3 {[%emt 0:02:14] [#]} d5 $1 {[%emt 0:02:00][%mdl 512]} 16. Bg2 {[%emt 0:03:59]} Bg4 {[%emt 0:06:34]} 17. Qa4 {[%emt 0:05:28]} Bb6 $36 {[%emt 0:03:03][%mdl 2048] Keeping White busy.} 18. Rfe1 {[%emt 0:04:14]} (18. Qf4 $17) 18... c6 {[%emt 0:08:22]} 19. Bxb6 {[%emt 0:01:50]} axb6 {[%emt 0:00:46]} 20. Qd4 {[%emt 0:00:04]} Rae8 {[%emt 0:01:08] And now ...Nf3+ would win.} 21. Re3 {[%emt 0:05:28][%cal Oa1e1]} Re7 {[%emt 0:09:19]} (21... cxb5 $6 22. Rae1 $11) 22. Rae1 {[%emt 0:02:40]} Rfe8 {[%emt 0:00:57]} 23. Na3 {[%emt 0:02:47]} (23. f4 Nf3+ 24. Bxf3 Qxd4 25. Nxd4 Rxe3 $11) (23. Nc7 $17 {was worth a try.} Rxc7 24. Rxe5 Rxe5 25. Rxe5) 23... Nf3+ {[%emt 0:18:00]} ({Better is} 23... Bf5 $19 {...Re6 would now be deadly.} 24. Qxb6 Be4) 24. Bxf3 $15 {[%emt 0:00:21][%cal Bg2f3,Bf3g4,Bg4c8,Bc8b7,Bb7d5][%mdl 32]} Qxd4 {[%emt 0:01:03]} 25. cxd4 {[%emt 0:00:30]} Rxe3 {[%emt 0:00:03]} 26. Rxe3 {[%emt 0:00:30]} Rxe3 {[%emt 0:00:03]} 27. Bxg4 {[%emt 0:00:42]} Re4 {[%emt 0:00:15]} (27... Re1+ $1 $15 28. Kg2 Rc1) 28. Bc8 $11 {[%emt 0:00:22] The position is equal.} Rxd4 {[%emt 0:00:22] aiming for ...b5.} 29. Bxb7 {[%emt 0:00:06]} c5 {[%emt 0:00:13]} 30. Kf1 {[%emt 0:05:20]} Rd2 {[%emt 0:00:46]} 31. Ke1 {[%emt 0:00:03]} Rxb2 {[%emt 0:00:04]} 32. Bxd5 {[%emt 0:00:02]} b5 {[%emt 0:00:07]} 33. Kd1 {[%emt 0:02:13]} c4 {[%emt 0:00:47]} (33... Rxf2 $6 34. Nxb5 g5 35. Nc3 $16) 34. f3 {[%emt 0:00:32]} ({Don't take} 34. Kc1 $6 Rxf2 (34... Rxa2 35. Nxb5 Rxf2 36. Nc3 $17) 35. Nxb5 Rxa2 $16) 34... h5 {[%emt 0:10:34]} 35. Kc1 {[%emt 0:01:24]} Rxa2 {[%emt 0:00:51]} 36. Nxb5 {[%emt 0:00:04]} Kf8 {[%emt 0:02:06]} 37. Nd6 {[%emt 0:01:00]} Ra5 {[%emt 0:02:31]} 38. Be4 {[%emt 0:02:07]} ({Much weaker is} 38. Bxf7 Ra6 39. Nxc4 Kxf7 $15) 38... Ra1+ {[%emt 0:00:50]} 39. Bb1 {[%emt 0:00:58]} Ra3 {[%emt 0:00:18]} 40. Be4 {[%emt 0:00:19]} Ra1+ {[%emt 0:03:31]} 41. Bb1 {[%emt 0:51:13] Whites escaped into a draw.   Weighted Error Value: White=0.16 (very precise) /Black=0.16 (very precise) .  Mistake:       	White=4     	Black=2      Inaccurate:     	---       	Black=3      OK:         	White=16    	Black=20     Best:        	White=6     	Black=1} 1/2-1/2

[Event "86th Tata Steel Tienkamp 2024"]
[Site "Wijk aan Zee"]
[Date "2024.01.26"]
[Round "7.4"]
[White "Abdulla, Murad"]
[Black "Pastar, Slaven"]
[Result "0-1"]
[ECO "C06"]
[WhiteElo "2332"]
[BlackElo "2343"]
[Annotator "RC"]
[PlyCount "92"]
[EventDate "2024.01.02"]
[EventType "tourn"]
[EventCountry "NED"]
[SourceTitle "playchess.com"]
[Source "ChessBase"]
[SourceQuality "1"]
[TimeControl "40/6000+30:20/3000+30:900+30"]

1. e4 {[%emt 0:10:03]} e6 {[%emt 0:10:25]} 2. d4 {[%emt 0:00:31]} d5 {[%emt 0:00:12]} 3. Nd2 {[%emt 0:00:08]} Nf6 {[%emt 0:01:02]} 4. e5 {[%emt 0:00:38]} Nfd7 {[%emt 0:00:06]} 5. Bd3 {[%emt 0:00:26]} c5 {[%emt 0:00:09]} 6. c3 {[%emt 0:00:05]} Nc6 {[%emt 0:00:25]} 7. Ne2 {[%emt 0:00:07]} cxd4 {[%emt 0:01:24]} 8. cxd4 {[%emt 0:00:05]} f6 {[%emt 0:00:16]} 9. exf6 {[%emt 0:00:46]} Nxf6 {[%emt 0:00:32]} 10. Nf3 {[%emt 0:00:27]} Bd6 {[%emt 0:00:17]} 11. O-O {[%emt 0:06:14]} Qc7 {[%emt 0:00:52]} 12. Ng3 {[%emt 0:02:05]} O-O {[%emt 0:05:10]} 13. Bd2 {[%emt 0:02:17]} Bd7 {[%emt 0:16:30]} 14. Qc2 {[%emt 0:07:21]} Qb6 {[%emt 0:03:36]} 15. Bc3 {[%emt 0:07:32]} Nb4 {[%emt 0:01:26]} 16. Bxb4 {[%emt 0:00:58]} Qxb4 {[%emt 0:01:41]} 17. Rad1 {[%emt 0:05:58]} a5 {[%emt 0:11:23]} 18. Qe2 {[%emt 0:09:59]} Qb6 {[%emt 0:05:59]} 19. Ne5 {[%emt 0:12:20]} Ba4 {[%emt 0:04:56]} 20. Bc2 {[%emt 0:00:53]} Bxc2 {[%emt 0:05:16]} 21. Qxc2 {[%emt 0:00:17]} Bxe5 {[%emt 0:00:52]} 22. dxe5 {[%emt 0:00:05]} Ng4 {[%emt 0:04:40]} 23. Qe2 {[%emt 0:13:33]} Rf4 {[%emt 0:01:48]} 24. h3 {[%emt 0:00:17]} Nh6 {[%emt 0:01:06]} 25. Qe3 {[%emt 0:03:20]} Qxe3 {[%emt 0:04:18]} 26. fxe3 {[%emt 0:00:04]} Rxf1+ {[%emt 0:08:09]} 27. Kxf1 {[%emt 0:00:18]} Nf7 {[%emt 0:03:41]} 28. Rc1 {[%emt 0:04:04]} Nxe5 {[%emt 0:04:21]} 29. Rc7 {[%emt 0:00:20]} g6 {[%emt 0:03:30]} 30. Rxb7 {[%emt 0:01:27]} Rc8 {[%emt 0:00:45]} 31. Ne2 {[%emt 0:00:52]} Nc4 {[%emt 0:01:30]} 32. Nd4 {[%emt 0:02:59]} e5 {[%emt 0:00:48]} 33. Nf3 {[%emt 0:02:40]} e4 {[%emt 0:02:22]} 34. Ng5 {[%emt 0:00:33]} Nxe3+ {[%emt 0:00:48]} 35. Kf2 {[%emt 0:00:12]} Nf5 {[%emt 0:01:33]} 36. Nxh7 {[%emt 0:00:19]} e3+ {[%emt 0:02:09]} 37. Kf3 {[%emt 0:00:24]} Rc2 {[%emt 0:00:54]} 38. Rd7 {[%emt 0:13:24]} Rf2+ {[%emt 0:00:08]} 39. Kg4 {[%emt 0:00:03]} Nh6+ {[%emt 0:02:17]} 40. Kg3 {[%emt 0:01:34]} Nf5+ {[%emt 0:02:28]} 41. Kg4 {[%emt 0:53:13]} Nh6+ {[%emt 0:23:34]} 42. Kg3 {[%emt 0:00:00]} Rf1 {[%emt 0:08:19]} 43. Ng5 {[%emt 0:00:00]} e2 {[%emt 0:01:03]} 44. Rd8+ {[%emt 0:00:00]} Kg7 {[%emt 0:00:12]} 45. Ne6+ {[%emt 0:00:00]} Kf6 {[%emt 0:00:45]} 46. Rf8+ {[%emt 0:00:00]} Nf7 {[%emt 0:00:20]} 0-1

[Event "86th Tata Steel Tienkamp 2024"]
[Site "Wijk aan Zee"]
[Date "2024.01.26"]
[Round "7.5"]
[White "Holzke, Frank"]
[Black "Bekker, Stefan"]
[Result "0-1"]
[ECO "B36"]
[WhiteElo "2460"]
[BlackElo "2274"]
[Annotator "RC"]
[PlyCount "112"]
[EventDate "2024.01.02"]
[EventType "tourn"]
[EventCountry "NED"]
[SourceTitle "playchess.com"]
[Source "ChessBase"]
[SourceQuality "1"]
[TimeControl "40/6000+30:20/3000+30:900+30"]

1. c4 {[%emt 0:10:06]} c5 {[%emt 0:11:18]} 2. Nf3 {[%emt 0:01:27]} Nc6 {[%emt 0:00:04]} 3. d4 {[%emt 0:01:41]} cxd4 {[%emt 0:00:35]} 4. Nxd4 {[%emt 0:00:10]} g6 {[%emt 0:01:18]} 5. e4 {[%emt 0:00:48]} Nf6 {[%emt 0:00:58]} 6. Nc3 {[%emt 0:00:16]} d6 {[%emt 0:00:05]} 7. Be2 {[%emt 0:00:26]} Nxd4 {[%emt 0:00:05]} 8. Qxd4 {[%emt 0:00:10]} Bg7 {[%emt 0:00:43]} 9. Be3 {[%emt 0:01:23]} O-O {[%emt 0:00:18]} 10. Qd2 {[%emt 0:00:10]} a5 {[%emt 0:00:04]} 11. O-O {[%emt 0:01:15]} a4 {[%emt 0:01:01]} 12. Rad1 {[%emt 0:00:20]} Be6 {[%emt 0:00:28]} 13. f4 {[%emt 0:02:05]} Qa5 {[%emt 0:01:52]} 14. Bd4 {[%emt 0:00:40]} Rfc8 {[%emt 0:01:53]} 15. b3 {[%emt 0:26:07]} axb3 {[%emt 0:01:09]} 16. axb3 {[%emt 0:00:09]} Qb4 {[%emt 0:00:46]} 17. f5 {[%emt 0:04:46]} Bd7 {[%emt 0:01:17]} 18. Bxf6 {[%emt 0:07:07]} Bxf6 {[%emt 0:02:04]} 19. Nd5 {[%emt 0:00:12]} Qxb3 {[%emt 0:08:37]} 20. fxg6 {[%emt 0:01:52]} Be6 {[%emt 0:38:55]} 21. Rxf6 {[%emt 0:08:19]} exf6 {[%emt 0:05:15]} 22. Qh6 {[%emt 0:06:22]} Bxd5 {[%emt 0:01:49]} 23. gxh7+ {[%emt 0:01:05]} Kh8 {[%emt 0:00:22]} 24. Qxf6+ {[%emt 0:00:16]} Kxh7 {[%emt 0:00:07]} 25. Rxd5 {[%emt 0:02:52]} Qe3+ {[%emt 0:06:39]} 26. Kh1 {[%emt 0:03:27]} Rc5 {[%emt 0:08:36]} 27. Qxf7+ {[%emt 0:05:55]} Kh8 {[%emt 0:00:13]} 28. Rxd6 {[%emt 0:01:18]} Rc7 {[%emt 0:12:12]} 29. Qh5+ {[%emt 0:04:37]} Rh7 {[%emt 0:01:33]} 30. Qe5+ {[%emt 0:00:14]} Rg7 {[%emt 0:00:16]} 31. Bf1 {[%emt 0:02:33]} Qg5 {[%emt 0:02:13]} 32. Qxg5 {[%emt 0:01:50]} Rxg5 {[%emt 0:00:03]} 33. Kg1 {[%emt 0:02:44]} Rg4 {[%emt 0:01:14]} 34. Re6 {[%emt 0:02:50]} Rf4 {[%emt 0:00:29]} 35. g3 {[%emt 0:00:33]} Rf7 {[%emt 0:00:40]} 36. Re5 {[%emt 0:01:23]} Rf3 {[%emt 0:01:39]} 37. Rh5+ {[%emt 0:06:33]} Kg7 {[%emt 0:00:05]} 38. Rf5 {[%emt 0:00:23]} Re3 {[%emt 0:00:05]} 39. Rb5 {[%emt 0:00:48]} Ra7 {[%emt 0:00:55]} 40. e5 {[%emt 0:01:17]} Kg6 {[%emt 0:01:33]} 41. Kf2 {[%emt 0:36:25]} Rc3 {[%emt 0:21:25]} 42. Rb1 {[%emt 0:00:45]} Kf5 {[%emt 0:01:45]} 43. Re1 {[%emt 0:00:46]} Ra2+ {[%emt 0:00:06]} 44. Kg1 {[%emt 0:00:12]} Ke6 {[%emt 0:00:04]} 45. Bh3+ {[%emt 0:03:53]} Ke7 {[%emt 0:00:21]} 46. Bg2 {[%emt 0:01:56]} b6 {[%emt 0:00:39]} 47. Bd5 {[%emt 0:00:29]} Rd2 {[%emt 0:00:04]} 48. Kf1 {[%emt 0:10:49]} b5 {[%emt 0:01:26]} 49. Re2 {[%emt 0:00:15]} Rd1+ {[%emt 0:02:16]} 50. Re1 {[%emt 0:00:11]} Rd4 {[%emt 0:03:00]} 51. Rb1 {[%emt 0:00:58]} bxc4 {[%emt 0:03:46]} 52. Rb7+ {[%emt 0:00:12]} Kd8 {[%emt 0:00:16]} 53. Bf7 {[%emt 0:00:49]} Kc8 {[%emt 0:06:07]} 54. Ra7 {[%emt 0:02:28]} Kb8 {[%emt 0:01:55]} 55. Re7 {[%emt 0:00:12]} Rd2 {[%emt 0:02:21]} 56. Ke1 {[%emt 0:01:08]} Rxh2 {[%emt 0:00:04]} 0-1

[Event "86th Tata Steel Tienkamp 2024"]
[Site "Wijk aan Zee"]
[Date "2024.01.27"]
[Round "8.1"]
[White "Holzke, Frank"]
[Black "Pijpers, Arthur"]
[Result "1/2-1/2"]
[ECO "D73"]
[WhiteElo "2460"]
[BlackElo "2441"]
[Annotator "TA"]
[PlyCount "22"]
[EventDate "2024.01.02"]
[EventType "tourn"]
[EventCountry "NED"]
[SourceTitle "playchess.com"]
[Source "ChessBase"]
[SourceQuality "1"]
[TimeControl "40/6000+30:20/3000+30:900+30"]

{[%evp 12,22,0,-5,52,36,45,14,14,13,20,0,50]} 1. Nf3 {[%emt 0:10:06]} Nf6 {[%emt 0:10:17]} 2. d4 {[%emt 0:00:25]} g6 {[%emt 0:00:09]} 3. c4 {[%emt 0:00:25]} Bg7 {[%emt 0:00:13]} 4. g3 {[%emt 0:00:15]} c6 {[%emt 0:02:17]} 5. Nc3 {[%emt 0:01:21]} d5 {[%emt 0:00:10]} 6. Ne5 {[%emt 0:00:55]} O-O {[%emt 0:10:55]} 7. Bg2 {[%emt 0:00:24]} Nfd7 {[%emt 0:11:43]} ({Black should play} 7... Be6 $11) 8. Nxd7 {[%emt 0:01:16]} Bxd7 {[%emt 0:00:05]} 9. cxd5 {[%emt 0:01:21]} cxd5 {[%emt 0:00:07] The position is equal.} 10. Bxd5 {[%emt 0:05:45]} Nc6 {[%emt 0:02:07]} 11. O-O {[%emt 0:02:53]} Bxd4 {[%emt 0:20:31] Black got outplayed after the opening.   Weighted Error Value: White=0.16 (very precise) /Black=0.34.  Mistake:       	---       	Black=1      Inaccurate:     	White=1     	---        OK:         	---       	Black=1} (11... Bh3 $11) 1/2-1/2

[Event "86th Tata Steel Tienkamp 2024"]
[Site "Wijk aan Zee"]
[Date "2024.01.27"]
[Round "8.2"]
[White "Pastar, Slaven"]
[Black "Niermann, Tristan"]
[Result "1/2-1/2"]
[ECO "B30"]
[WhiteElo "2343"]
[BlackElo "2413"]
[Annotator "RC"]
[PlyCount "82"]
[EventDate "2024.01.02"]
[EventType "tourn"]
[EventCountry "NED"]
[SourceTitle "playchess.com"]
[Source "ChessBase"]
[SourceQuality "1"]
[TimeControl "40/6000+30:20/3000+30:900+30"]

1. e4 {[%emt 0:10:02]} c5 {[%emt 0:10:04]} 2. Nf3 {[%emt 0:00:50]} Nc6 {[%emt 0:00:09]} 3. Bb5 {[%emt 0:01:37]} e6 {[%emt 0:00:27]} 4. O-O {[%emt 0:03:52]} Nge7 {[%emt 0:00:19]} 5. d4 {[%emt 0:00:47]} cxd4 {[%emt 0:00:08]} 6. Nxd4 {[%emt 0:00:26]} Qb6 {[%emt 0:00:16]} 7. Nxc6 {[%emt 0:01:39]} bxc6 {[%emt 0:00:44]} 8. Be2 {[%emt 0:00:24]} Ng6 {[%emt 0:00:35]} 9. c4 {[%emt 0:01:00]} Be7 {[%emt 0:01:13]} 10. Nc3 {[%emt 0:00:22]} c5 {[%emt 0:02:04]} 11. Rb1 {[%emt 0:05:28]} O-O {[%emt 0:02:59]} 12. Be3 {[%emt 0:01:34]} Qc7 {[%emt 0:02:34]} 13. g3 {[%emt 0:04:36]} d6 {[%emt 0:01:12]} 14. Qd2 {[%emt 0:01:26]} Bb7 {[%emt 0:03:30]} 15. Rbd1 {[%emt 0:00:31]} Rad8 {[%emt 0:01:13]} 16. Bg5 {[%emt 0:12:57]} Bxg5 {[%emt 0:18:19]} 17. Qxg5 {[%emt 0:00:07]} Ne5 {[%emt 0:06:43]} 18. Qe3 {[%emt 0:11:06]} Nc6 {[%emt 0:05:13]} 19. Bf3 {[%emt 0:02:13]} Qb6 {[%emt 0:06:55]} 20. Bg2 {[%emt 0:05:33]} Rfe8 {[%emt 0:04:44]} 21. Rfe1 {[%emt 0:11:35]} Nd4 {[%emt 0:00:50]} 22. Rd2 {[%emt 0:03:04]} Qb4 {[%emt 0:01:10]} 23. b3 {[%emt 0:07:02]} Bc6 {[%emt 0:02:04]} 24. Qd3 {[%emt 0:10:33]} a5 {[%emt 0:10:07]} 25. Ne2 {[%emt 0:01:28]} e5 {[%emt 0:13:43]} 26. Nxd4 {[%emt 0:01:04]} exd4 {[%emt 0:00:24]} 27. Rde2 {[%emt 0:04:09]} f6 {[%emt 0:01:33]} 28. f4 {[%emt 0:00:29]} Re7 {[%emt 0:01:35]} 29. e5 {[%emt 0:04:36]} Bxg2 {[%emt 0:00:04]} 30. exf6 {[%emt 0:00:42]} Qxe1+ {[%emt 0:05:37]} 31. Rxe1 {[%emt 0:00:03]} Rxe1+ {[%emt 0:00:06]} 32. Kxg2 {[%emt 0:00:03]} g6 {[%emt 0:02:37]} 33. Qd2 {[%emt 0:03:07]} Rde8 {[%emt 0:00:08]} 34. Qxa5 {[%emt 0:00:14]} R1e6 {[%emt 0:00:18]} 35. Qb5 {[%emt 0:02:20]} Kf7 {[%emt 0:00:53]} 36. Qb7+ {[%emt 0:00:57]} Kxf6 {[%emt 0:00:12]} 37. g4 {[%emt 0:00:30]} R8e7 {[%emt 0:01:10]} 38. Qd5 {[%emt 0:00:30]} Re2+ {[%emt 0:02:15]} 39. Kf1 {[%emt 0:00:16]} Re1+ {[%emt 0:01:21]} 40. Kf2 {[%emt 0:00:22]} R1e2+ {[%emt 0:01:46]} 41. Kf1 {[%emt 0:22:40]} Re1+ {[%emt 0:21:43]} 1/2-1/2

[Event "86th Tata Steel Tienkamp 2024"]
[Site "Wijk aan Zee"]
[Date "2024.01.27"]
[Round "8.3"]
[White "Zwirs, Nico"]
[Black "Van Foreest, Machteld"]
[Result "1-0"]
[ECO "C54"]
[WhiteElo "2476"]
[BlackElo "2363"]
[Annotator "RC"]
[PlyCount "57"]
[EventDate "2024.01.02"]
[EventType "tourn"]
[EventCountry "NED"]
[SourceTitle "playchess.com"]
[Source "ChessBase"]
[SourceQuality "1"]
[TimeControl "40/6000+30:20/3000+30:900+30"]

1. e4 {[%emt 0:10:01]} e5 {[%emt 0:11:52]} 2. Nf3 {[%emt 0:01:25]} Nc6 {[%emt 0:00:06]} 3. Bc4 {[%emt 0:00:13]} Bc5 {[%emt 0:00:29]} 4. c3 {[%emt 0:02:17]} Nf6 {[%emt 0:00:05]} 5. d3 {[%emt 0:00:09]} a6 {[%emt 0:00:38]} 6. a4 {[%emt 0:00:47]} d6 {[%emt 0:01:14]} 7. Bg5 {[%emt 0:01:32]} Ba7 {[%emt 0:04:02]} 8. Nbd2 {[%emt 0:00:52]} Qe7 {[%emt 0:02:51]} 9. O-O {[%emt 0:02:16]} h6 {[%emt 0:03:32]} 10. Be3 {[%emt 0:09:21]} Bxe3 {[%emt 0:03:32]} 11. fxe3 {[%emt 0:00:20]} Be6 {[%emt 0:02:12]} 12. b4 {[%emt 0:06:36]} O-O {[%emt 0:05:28]} 13. Qe1 {[%emt 0:08:18]} Bxc4 {[%emt 0:05:32]} 14. Nxc4 {[%emt 0:01:20]} Qe6 {[%emt 0:00:38]} 15. Ncd2 {[%emt 0:15:43]} d5 {[%emt 0:05:09]} 16. exd5 {[%emt 0:08:59]} Qxd5 {[%emt 0:00:11]} 17. d4 {[%emt 0:02:27]} exd4 {[%emt 0:02:23]} 18. exd4 {[%emt 0:00:28]} Rae8 {[%emt 0:00:22]} 19. Qg3 {[%emt 0:01:55]} Re3 {[%emt 0:07:53]} 20. Rac1 {[%emt 0:06:08]} Rc8 {[%emt 0:05:25]} 21. Rfe1 {[%emt 0:03:51]} Qe6 {[%emt 0:03:44]} 22. b5 {[%emt 0:07:26]} axb5 {[%emt 0:01:17]} 23. axb5 {[%emt 0:00:02]} Ne7 {[%emt 0:01:00]} 24. Nf1 {[%emt 0:02:18]} Re2 {[%emt 0:02:18]} 25. Rxe2 {[%emt 0:00:59]} Qxe2 {[%emt 0:00:03]} 26. Re1 {[%emt 0:00:24]} Qc2 {[%emt 0:02:34]} 27. Rxe7 {[%emt 0:00:09]} Ne4 {[%emt 0:00:01]} 28. Qe1 {[%emt 0:00:54]} Nxc3 {[%emt 0:00:02]} 29. Re3 {[%emt 0:01:13]} 1-0

[Event "86th Tata Steel Tienkamp 2024"]
[Site "Wijk aan Zee"]
[Date "2024.01.27"]
[Round "8.4"]
[White "Bekker, Stefan"]
[Black "Baselmans, Luuk"]
[Result "1/2-1/2"]
[ECO "E07"]
[WhiteElo "2274"]
[BlackElo "2323"]
[Annotator "TA"]
[PlyCount "71"]
[EventDate "2024.01.02"]
[EventType "tourn"]
[EventCountry "NED"]
[SourceTitle "playchess.com"]
[Source "ChessBase"]
[SourceQuality "1"]
[TimeControl "40/6000+30:20/3000+30:900+30"]

{[%evp 14,71,20,11,21,29,24,29,57,23,25,34,18,19,16,13,30,26,29,29,50,25,26,16,68,83,86,72,90,50,52,60,51,56,55,36,51,35,35,37,70,35,41,30,34,37,85,33,38,38,87,35,35,8,8,12,10,16,11,7]} 1. Nf3 {[%emt 0:10:04]} d5 {[%emt 0:10:17]} 2. g3 {[%emt 0:00:05]} Nf6 {[%emt 0:01:41]} 3. Bg2 {[%emt 0:00:11]} e6 {[%emt 0:01:50]} 4. O-O {[%emt 0:00:20]} Be7 {[%emt 0:00:21]} 5. d4 {[%emt 0:00:06]} O-O {[%emt 0:00:25]} 6. c4 {[%emt 0:00:04]} c6 {[%emt 0:02:59]} 7. b3 {[%emt 0:00:41]} Nbd7 {[%emt 0:00:24]} 8. Nc3 {[%emt 0:01:22]} a5 {[%emt 0:01:47]} 9. Qc2 {[%emt 0:01:19]} b6 {[%emt 0:09:03]} 10. e4 {[%emt 0:05:32]} dxe4 {[%emt 0:03:01] Weiß hat minimalen Vorteil.} 11. Nxe4 {[%emt 0:00:41]} Nxe4 {[%emt 0:00:18]} 12. Qxe4 {[%emt 0:00:06]} Bb7 {[%emt 0:00:20]} 13. Bb2 {[%emt 0:03:37]} Qc7 {[%emt 0:12:47]} 14. Rad1 {[%emt 0:11:51]} Rfe8 {[%emt 0:04:49]} 15. Qc2 {[%emt 0:01:23]} Rad8 {[%emt 0:04:22]} 16. Rfe1 {[%emt 0:03:49]} Bf6 {[%emt 0:08:11]} 17. h4 {[%emt 0:04:16]} (17. Bc1 {hält die Spannung aufrecht.} c5 18. Ng5 Nf8 19. Bf4) 17... h6 {[%emt 0:02:40] Lässt Ng5 nicht zu} 18. Bc1 {[%emt 0:07:47]} e5 {[%emt 0:04:30]} (18... c5 $11) 19. dxe5 {[%emt 0:18:19]} (19. Nxe5 {ist interessant.} Nxe5 20. Bf4 Rxd4 21. Rxd4 Nf3+ 22. Bxf3 Rxe1+ 23. Kg2) 19... Nxe5 {[%emt 0:00:11]} 20. Bf4 {[%emt 0:02:54]} (20. c5 {mit weiteren Verwicklungen.} Rxd1 21. Rxd1 bxc5 22. Nxe5 Qxe5 23. Be3) 20... Rxd1 {[%emt 0:04:25]} 21. Qxd1 {[%emt 0:01:11]} Nxf3+ {[%emt 0:02:35]} 22. Bxf3 {[%emt 0:00:12]} Rxe1+ {[%emt 0:00:08]} 23. Qxe1 {[%emt 0:00:04]} Qe7 {[%emt 0:00:45]} 24. Qd2 {[%emt 0:03:09]} Qd8 {[%emt 0:06:26]} 25. Qe2 {[%emt 0:03:30]} Qd7 {[%emt 0:03:20]} 26. Qe4 {[%emt 0:02:52]} Qe7 {[%emt 0:02:44]} 27. Qd3 {[%emt 0:06:08]} Qd8 {[%emt 0:02:13]} 28. Qe3 {[%emt 0:01:43]} (28. Qxd8+ {vereinfacht} Bxd8 29. Be3 Kf8 30. Kg2) 28... Bd4 {[%emt 0:02:25]} 29. Qe4 {[%emt 0:03:19]} Bc5 {[%emt 0:00:34] [#]} (29... Qd7 $14) 30. Kg2 {[%emt 0:00:17]} (30. Be3 $1 $16 {Bxc5 wäre nun fies.} Bxe3 31. Qxe3) 30... Qd7 $14 {[%emt 0:02:35]} 31. h5 {[%emt 0:02:17]} Bc8 {[%emt 0:04:13]} (31... Bd4 $14) 32. g4 {[%emt 0:02:18] Aktives Gegenspiel!} ({Besser ist} 32. Qxc6 $16 Qxc6 33. Bxc6) 32... Qe6 {[%emt 0:00:15]} 33. Qxe6 {[%emt 0:02:45]} Bxe6 {[%emt 0:00:08] Die Stellung ist ausgeglichen.} 34. Kg3 {[%emt 0:00:08]} b5 {[%emt 0:00:22]} 35. Be2 {[%emt 0:00:24]} a4 {[%emt 0:00:59]} 36. cxb5 {[%emt 0:00:41] Gewichteter Fehlerwert: Weiß=0.12 (sehr präzise) /Schwarz=0.13 (sehr präzise) .  Fehler:       	Weiß=2     	Schwarz=3     Ungenau:       	Weiß=4     	Schwarz=2     OK:         	Weiß=8     	Schwarz=10    Bester:       	---       	Schwarz=1} 1/2-1/2

[Event "86th Tata Steel Tienkamp 2024"]
[Site "Wijk aan Zee"]
[Date "2024.01.27"]
[Round "8.5"]
[White "De Winter, Arthur"]
[Black "Abdulla, Murad"]
[Result "1/2-1/2"]
[ECO "B76"]
[WhiteElo "2409"]
[BlackElo "2332"]
[Annotator "RC"]
[PlyCount "78"]
[EventDate "2024.01.02"]
[EventType "tourn"]
[EventCountry "NED"]
[SourceTitle "playchess.com"]
[Source "ChessBase"]
[SourceQuality "1"]
[TimeControl "40/6000+30:20/3000+30:900+30"]

1. e4 {[%emt 0:10:03]} c5 {[%emt 0:10:08]} 2. Nf3 {[%emt 0:00:06]} d6 {[%emt 0:00:05]} 3. d4 {[%emt 0:00:04]} cxd4 {[%emt 0:00:03]} 4. Nxd4 {[%emt 0:00:05]} Nf6 {[%emt 0:00:04]} 5. Nc3 {[%emt 0:00:03]} g6 {[%emt 0:00:03]} 6. Be3 {[%emt 0:00:06]} Bg7 {[%emt 0:00:03]} 7. f3 {[%emt 0:00:05]} O-O {[%emt 0:00:04]} 8. Qd2 {[%emt 0:00:04]} Nc6 {[%emt 0:00:02]} 9. O-O-O {[%emt 0:00:10]} d5 {[%emt 0:00:04]} 10. exd5 {[%emt 0:00:04]} Nxd5 {[%emt 0:00:05]} 11. Nxc6 {[%emt 0:00:03]} bxc6 {[%emt 0:00:05]} 12. Bd4 {[%emt 0:00:02]} Bxd4 {[%emt 0:00:13]} 13. Qxd4 {[%emt 0:00:06]} Qb6 {[%emt 0:00:02]} 14. Na4 {[%emt 0:00:15]} Qa5 {[%emt 0:00:03]} 15. b3 {[%emt 0:00:09]} Be6 {[%emt 0:02:27]} 16. Qe5 {[%emt 0:00:19]} Qb4 {[%emt 0:00:45]} 17. c4 {[%emt 0:00:40]} Nf6 {[%emt 0:02:48]} 18. Bd3 {[%emt 0:21:21]} Rfd8 {[%emt 0:05:55]} 19. h4 {[%emt 0:17:10]} Rd6 {[%emt 0:12:33]} 20. Bc2 {[%emt 0:10:05]} Rad8 {[%emt 0:01:36]} 21. Qc5 {[%emt 0:01:46]} Qxc5 {[%emt 0:15:47]} 22. Nxc5 {[%emt 0:00:06]} Bc8 {[%emt 0:00:02]} 23. Rhe1 {[%emt 0:06:45]} Kf8 {[%emt 0:00:22]} 24. Be4 {[%emt 0:21:26]} Nxe4 {[%emt 0:14:18]} 25. Nxe4 {[%emt 0:00:27]} Rxd1+ {[%emt 0:01:27]} 26. Rxd1 {[%emt 0:00:04]} Rxd1+ {[%emt 0:00:07]} 27. Kxd1 {[%emt 0:00:02]} e5 {[%emt 0:00:28]} 28. Kd2 {[%emt 0:12:51]} Ke7 {[%emt 0:00:24]} 29. Ke3 {[%emt 0:01:38]} f5 {[%emt 0:00:46]} 30. Nf2 {[%emt 0:00:32]} c5 {[%emt 0:15:47]} 31. g3 {[%emt 0:02:37]} Kd6 {[%emt 0:01:16]} 32. Nd3 {[%emt 0:02:34]} Bd7 {[%emt 0:04:11]} 33. f4 {[%emt 0:02:35]} e4 {[%emt 0:04:29]} 34. Nf2 {[%emt 0:00:40]} h5 {[%emt 0:01:53]} 35. Nd1 {[%emt 0:00:23]} Be6 {[%emt 0:00:41]} 36. Nc3 {[%emt 0:00:28]} Kc6 {[%emt 0:00:55]} 37. Kd2 {[%emt 0:01:17]} a5 {[%emt 0:00:14]} 38. Ke3 {[%emt 0:00:52]} Bf7 {[%emt 0:00:28]} 39. Kd2 {[%emt 0:00:17]} Be6 {[%emt 0:00:06]} 1/2-1/2